bitfinex/quotes_SOLUSD_20240811
["timestamp","ask_amount","ask_price","bid_price","bid_amount"]
[1723369336343,10.9655,156.62,156.52,27.41]
[1723369336542,4.4697,156.61,156.52,27.41]
[1723369336760,33.9061,156.62,156.5,27.41]
[1723369336761,19.976,156.6,156.5,27.41]
[1723369337067,42.9159,156.6,156.48,27.41]
[1723369337271,15.5059,156.6,156.52,27.41]
[1723369337484,15.5059,156.6,156.53,1.27745462]
[1723369337637,15.5059,156.6,156.52,27.41]
[1723369338257,15.5059,156.6,156.5,27.41]
[1723369338466,15.5059,156.6,156.51,1.27755418]
[1723369338845,19.9759,156.6,156.51,1.27755418]
[1723369339075,19.9759,156.6,156.5,27.41]
[1723369339483,19.9759,156.6,156.51,1.27763165]
[1723369340385,19.9759,156.6,156.5,27.41]
[1723369345787,41.9459,156.6,156.5,21.97]
[1723369347385,21.97,156.58,156.5,21.97]
[1723369347696,1.59714017,156.57,156.48,21.97]
[1723369348882,15.2568,156.56,156.45,0.12549]
[1723369349079,15.2568,156.56,156.44,6.66545802]
[1723369349080,6.307,156.49,156.44,6.66545802]
[1723369349398,6.307,156.49,156.42,21.97]
[1723369350257,6.307,156.49,156.41,21.97]
[1723369354597,28.277,156.49,156.41,21.97]
[1723369355866,6.307,156.49,156.43,21.97]
[1723369358679,6.307,156.49,156.42,0.12549]
[1723369358890,6.307,156.49,156.44,21.97]
[1723369359070,6.307,156.49,156.45,1.27796351]
[1723369359460,6.307,156.49,156.44,21.97]
[1723369359961,6.307,156.49,156.46,21.97]
[1723369360167,6.307,156.53,156.48,21.97]
[1723369360368,6.307,156.53,156.5,21.97]
[1723369360595,6.307,156.53,156.51,1.27764915]
[1723369361183,6.307,156.53,156.38,0.843774]
[1723369361396,32.749,156.53,156.44,21.97]
[1723369361596,32.749,156.53,156.38,0.843774]
[1723369361597,26.4426,156.51,156.42,21.97]
[1723369361898,21.97,156.56,156.4,21.97]
[1723369361899,6.2554,156.48,156.4,21.97]
[1723369365027,21.97,156.47,156.38,22.813774]
[1723369365195,1.59809666,156.46,156.38,0.843774]
[1723369365494,6.2554,156.44,156.38,0.843774]
[1723369366274,15.4785,156.43,156.38,0.843774]
[1723369367071,37.4485,156.43,156.38,0.843774]
[1723369367292,37.4485,156.41,156.31,21.97]
[1723369367522,37.4485,156.41,156.32,0.58542603]
[1723369367689,41.9239,156.41,156.32,0.58542603]
[1723369367876,37.4485,156.41,156.3,21.97]
[1723369368081,1.59888083,156.4,156.32,21.97]
[1723369368282,37.4485,156.41,156.32,21.97]
[1723369368788,37.4485,156.41,156.33,0.58519397]
[1723369369317,51.38089,156.4,156.3,21.97]
[1723369369482,6.50638,156.4,156.3,21.97]
[1723369369681,6.2554,156.4,156.3,21.97]
[1723369370299,21.97,156.39,156.3,21.97]
[1723369370506,15.4785,156.38,156.26,0.58579798]
[1723369370710,15.4785,156.38,156.23,5.92098721]
[1723369370711,21.7339,156.38,156.29,21.97]
[1723369370888,21.7339,156.38,156.3,0.58598032]
[1723369371301,21.7339,156.38,156.31,21.97]
[1723369371994,21.7339,156.38,156.29,21.97]
[1723369373882,43.7039,156.38,156.25,0.58544307]
[1723369374210,43.7039,156.38,156.29,21.97]
[1723369375102,43.7039,156.38,156.26,0.25098]
[1723369375103,21.7339,156.38,156.31,21.97]
[1723369376217,21.7339,156.38,156.33,21.97]
[1723369376393,21.7339,156.38,156.35,21.97]
[1723369376587,15.4785,156.38,156.35,21.97]
[1723369376795,21.7339,156.42,156.35,21.97]
[1723369377299,21.7339,156.42,156.37,21.97]
[1723369377887,21.7339,156.42,156.38,45.12549]
[1723369378088,21.7339,156.42,156.37,21.97]
[1723369378089,21.7339,156.42,156.36,41.97]
[1723369378298,21.7339,156.42,156.38,21.97]
[1723369378513,15.4785,156.42,156.38,21.97]
[1723369379200,15.4785,156.42,156.39,45.25098]
[1723369380050,21.7339,156.46,156.39,45.25098]
[1723369380193,21.7339,156.46,156.42,21.97]
[1723369380708,21.7339,156.46,156.41,0.12549]
[1723369380892,21.7339,156.46,156.42,21.97]
[1723369381094,21.7339,156.46,156.4,21.97]
[1723369381303,21.7339,156.46,156.38,21.97]
[1723369381703,43.7039,156.46,156.36,21.97]
[1723369382010,26.4446,156.44,156.34,21.97]
[1723369382322,25.9055,156.43,156.34,21.97]
[1723369383294,25.9055,156.43,156.36,21.97]
[1723369383295,21.4306,156.43,156.36,21.97]
[1723369383506,21.4306,156.43,156.36,22.55386809]
[1723369383822,21.4306,156.43,156.36,28.08386809]
[1723369384328,21.4306,156.43,156.39,0.12549]
[1723369384494,21.4306,156.43,156.39,45.0]
[1723369385128,21.4306,156.43,156.33,27.5]
[1723369385424,21.4306,156.43,156.35,27.5]
[1723369385614,21.4306,156.43,156.37,27.5]
[1723369385808,21.4306,156.43,156.35,27.5]
[1723369386018,21.4306,156.43,156.33,27.5]
[1723369386405,21.4306,156.43,156.35,27.5]
[1723369386622,21.4306,156.43,156.36,45.0]
[1723369387203,21.4306,156.43,156.35,27.5]
[1723369387544,21.4306,156.43,156.36,0.58421695]
[1723369387902,21.4306,156.43,156.37,27.5]
[1723369388097,21.4306,156.43,156.38,45.0]
[1723369388825,21.4306,156.43,156.39,0.12549]
[1723369391631,21.4306,156.43,156.37,27.5]
[1723369391934,21.4306,156.43,156.35,27.5]
[1723369392227,21.4306,156.43,156.36,0.12549]
[1723369392549,21.4306,156.43,156.36,0.25098]
[1723369392708,21.4306,156.43,156.36,0.83490875]
[1723369392907,21.4306,156.43,156.36,0.25098]
[1723369393213,21.4306,156.43,156.36,45.25098]
[1723369393410,21.4306,156.43,156.37,0.25098]
[1723369393609,21.4306,156.43,156.33,27.5]
[1723369393821,25.9055,156.43,156.33,27.5]
[1723369394424,25.9055,156.43,156.31,27.5]
[1723369394616,27.5,156.48,156.31,27.5]
[1723369394617,6.2881,156.41,156.31,27.5]
[1723369394824,15.1425,156.39,156.29,27.5]
[1723369396235,6.2881,156.38,156.3,0.58522256]
[1723369396440,33.7881,156.38,156.27,287.2]
[1723369396933,33.7881,156.38,156.28,0.58593581]
[1723369397309,15.1425,156.37,156.28,0.58593581]
[1723369397512,33.7881,156.38,156.28,0.58593581]
[1723369397513,15.1425,156.35,156.28,0.58593581]
[1723369397735,15.1425,156.35,156.28,20.0]
[1723369398119,15.1425,156.35,156.27,27.5]
[1723369400157,15.1425,156.35,156.29,27.5]
[1723369403831,15.1425,156.35,156.28,22.03]
[1723369406351,15.1425,156.35,156.29,0.25098]
[1723369406561,15.1425,156.35,156.3,22.03]
[1723369406748,15.1425,156.35,156.32,22.03]
[1723369407550,15.1425,156.35,156.33,45.0]
[1723369409345,15.1425,156.35,156.32,22.03]
[1723369409854,15.1425,156.35,156.33,45.0]
[1723369410158,16.5101,156.39,156.34,22.15549]
[1723369410357,16.5101,156.39,156.36,22.03]
[1723369410741,16.5101,156.39,156.34,22.15549]
[1723369411540,16.5101,156.39,156.34,22.03]
[1723369411844,16.5101,156.39,156.32,22.03]
[1723369412247,16.5101,156.39,156.33,0.12549]
[1723369412438,16.5101,156.39,156.24,2.55739025]
[1723369412639,16.5101,156.39,156.31,22.03]
[1723369412941,16.5101,156.39,156.33,22.03]
[1723369413545,16.5101,156.39,156.35,22.03]
[1723369414371,16.5101,156.39,156.37,22.03]
[1723369418545,16.5101,156.43,156.37,22.03]
[1723369418747,16.5101,156.43,156.39,22.03]
[1723369420661,16.5101,156.43,156.41,22.03]
[1723369423049,16.5101,156.43,156.32,2.57244183]
[1723369423351,16.5101,156.43,156.39,22.03]
[1723369423975,16.5101,156.43,156.41,22.03]
[1723369427073,16.5101,156.43,156.39,22.03]
[1723369427948,6.443,156.44,156.39,22.03]
[1723369428155,6.443,156.44,156.42,0.12549]
[1723369428361,6.443,156.44,156.42,45.25098]
[1723369428562,6.443,156.44,156.43,22.03]
[1723369429263,15.6159,156.47,156.43,67.03]
[1723369429470,15.6159,156.47,156.43,22.03]
[1723369432272,37.6459,156.47,156.32,14.3256]
[1723369432756,15.6159,156.47,156.38,22.03]
[1723369434752,15.6159,156.47,156.4,22.03]
[1723369435555,15.6159,156.47,156.44,22.03]
[1723369435756,6.1627,156.49,156.46,22.03]
[1723369435963,6.1627,156.49,156.45,22.03]
[1723369436274,6.1627,156.49,156.43,22.03]
[1723369436681,6.1627,156.49,156.44,45.25098]
[1723369436880,6.1627,156.49,156.44,45.0]
[1723369437389,6.1627,156.49,156.45,22.15549]
[1723369437689,15.6159,156.51,156.45,22.15549]
[1723369437690,15.6159,156.51,156.47,22.03]
[1723369437887,15.6159,156.51,156.46,45.12549]
[1723369438187,15.6159,156.51,156.45,42.03]
[1723369438374,15.6159,156.51,156.43,22.03]
[1723369438693,15.6159,156.51,156.44,20.0]
[1723369438988,15.6159,156.51,156.45,22.03]
[1723369439593,15.6159,156.51,156.44,20.0]
[1723369439986,15.6159,156.51,156.43,22.03]
[1723369441098,20.0884,156.51,156.43,22.03]
[1723369441395,15.6159,156.51,156.43,22.03]
[1723369444894,22.03,156.48,156.38,22.03]
[1723369445195,23.62811922,156.48,156.38,22.03]
[1723369445879,21.555,156.47,156.38,22.03]
[1723369446407,1.59820566,156.46,156.38,22.03]
[1723369447699,21.555,156.47,156.38,22.03]
[1723369447996,23.15320527,156.47,156.38,22.03]
[1723369448203,21.555,156.47,156.38,22.03]
[1723369449376,23.15320767,156.47,156.37,22.03]
[1723369449681,23.15320767,156.47,156.38,20.0]
[1723369450303,21.555,156.47,156.39,22.03]
[1723369453801,21.555,156.47,156.41,22.03]
[1723369457978,21.555,156.47,156.43,22.03]
[1723369458713,21.555,156.47,156.4,22.03]
[1723369460606,21.555,156.47,156.38,22.03]
[1723369460797,21.555,156.47,156.33,0.12549]
[1723369461004,21.555,156.47,156.39,22.03]
[1723369461204,21.555,156.47,156.4,20.0]
[1723369463697,21.555,156.47,156.38,22.03]
[1723369464293,21.555,156.47,156.4,22.03]
[1723369466514,21.555,156.47,156.38,22.03]
[1723369466689,21.555,156.47,156.39,20.0]
[1723369467298,23.15324291,156.47,156.39,20.0]
[1723369468013,21.555,156.47,156.39,20.0]
[1723369469398,21.555,156.47,156.4,22.03]
[1723369469810,21.555,156.47,156.42,22.03]
[1723369470009,21.555,156.47,156.4,22.03]
[1723369479314,1.59823364,156.46,156.4,22.03]
[1723369479492,23.15325286,156.47,156.4,22.03]
[1723369479690,21.555,156.47,156.4,22.03]
[1723369481724,21.555,156.47,156.41,11.0]
[1723369483920,32.555,156.47,156.41,11.0]
[1723369484221,32.555,156.47,156.4,11.0]
[1723369484618,11.0,156.46,156.33,19.35131771]
[1723369484821,11.0,156.45,156.38,11.0]
[1723369485319,11.0,156.46,156.39,11.0]
[1723369486704,11.0,156.45,156.39,11.0]
[1723369487008,16.0017,156.44,156.39,11.0]
[1723369488623,16.0017,156.44,156.38,11.0]
[1723369491134,16.0017,156.44,156.39,11.0]
[1723369491626,6.4373,156.43,156.33,0.12549]
[1723369491929,6.4373,156.43,156.38,11.0]
[1723369493324,6.4373,156.43,156.37,11.0]
[1723369496503,6.4373,156.43,156.38,11.0]
[1723369499198,17.4373,156.43,156.33,0.25098]
[1723369499406,17.4373,156.43,156.36,11.0]
[1723369500338,17.4373,156.43,156.37,11.0]
[1723369503112,6.4373,156.43,156.37,11.0]
[1723369504224,6.4373,156.43,156.38,11.0]
[1723369504413,6.4373,156.43,156.37,11.0]
[1723369504610,17.4373,156.43,156.33,0.25098]
[1723369504835,1.59857667,156.42,156.36,11.0]
[1723369505150,17.4373,156.43,156.36,11.0]
[1723369505313,6.4373,156.43,156.36,11.0]
[1723369505640,6.4373,156.43,156.37,11.0]
[1723369505807,6.4373,156.43,156.38,11.0]
[1723369506201,6.4373,156.43,156.41,11.0]
[1723369507117,16.0017,156.44,156.42,11.0]
[1723369507441,16.0017,156.44,156.43,11.0]
[1723369507810,16.0017,156.44,156.34,19.06864661]
[1723369508029,16.0017,156.44,156.35,73.05585612]
[1723369508242,16.0017,156.44,156.42,11.0]
[1723369508537,16.0017,156.44,156.4,11.0]
[1723369509025,16.0017,156.44,156.41,11.0]
[1723369509235,16.0017,156.44,156.42,11.0]
[1723369509426,6.4557,156.47,156.43,11.0]
[1723369509736,6.4557,156.47,156.42,11.0]
[1723369509915,6.4557,156.47,156.41,11.0]
[1723369510435,17.4557,156.47,156.4,11.0]
[1723369510811,15.4248,156.43,156.34,5.33297902]
[1723369511134,6.4557,156.41,156.37,11.0]
[1723369511311,6.4557,156.41,156.39,11.0]
[1723369511522,15.4248,156.43,156.4,11.0]
[1723369511719,15.4248,156.43,156.42,11.0]
[1723369512852,7.0375194,156.52,156.42,76.0]
[1723369512853,21.8805,156.51,156.42,76.0]
[1723369513038,21.8805,156.51,156.45,11.0]
[1723369513339,21.8805,156.51,156.5,11.0]
[1723369513516,15.4248,156.51,156.43,0.12549]
[1723369513716,15.4248,156.51,156.48,11.0]
[1723369513934,15.4248,156.51,156.49,11.0]
[1723369514134,21.8805,156.55,156.43,65.37647]
[1723369514437,21.8805,156.55,156.48,11.0]
[1723369514650,21.8805,156.55,156.53,11.0]
[1723369515119,21.8805,156.55,156.51,11.0]
[1723369515316,21.8805,156.55,156.49,31.0]
[1723369516020,11.0,156.51,156.4,14.3256]
[1723369516244,11.0,156.51,156.44,11.0]
[1723369517331,12.59773755,156.51,156.44,11.0]
[1723369518351,11.0,156.49,156.42,11.0]
[1723369518519,6.4557,156.5,156.42,11.0]
[1723369518718,12.5978249,156.49,156.42,11.0]
[1723369520322,12.5978249,156.49,156.36,21.71195591]
[1723369520323,15.4248,156.48,156.36,21.71195591]
[1723369520526,12.59821291,156.47,156.4,11.0]
[1723369520723,6.4557,156.46,156.4,11.0]
[1723369521539,1.59818514,156.45,156.4,11.0]
[1723369521955,6.4557,156.46,156.4,11.0]
[1723369522434,6.4557,156.46,156.42,11.0]
[1723369522651,6.4557,156.46,156.34,0.12549]
[1723369522652,6.4557,156.46,156.44,11.0]
[1723369523220,6.4557,156.46,156.43,11.0]
[1723369523636,6.4557,156.46,156.42,11.0]
[1723369523830,6.4557,156.46,156.41,11.0]
[1723369524742,6.4557,156.46,156.42,11.0]
[1723369524932,6.4557,156.46,156.34,7.38635591]
[1723369525137,6.4557,156.46,156.41,11.0]
[1723369527925,6.4557,156.46,156.4,11.0]
[1723369529346,6.4557,156.46,156.41,11.0]
[1723369530651,6.4557,156.46,156.36,0.12549]
[1723369530945,6.4557,156.46,156.41,11.0]
[1723369531324,6.4557,156.46,156.36,0.25098]
[1723369531525,1.59814604,156.45,156.35,20.0]
[1723369531729,16.1383,156.44,156.37,11.0]
[1723369533646,27.1383,156.4,156.28,12.71933493]
[1723369533945,11.0,156.39,156.25,7.13468034]
[1723369534156,11.0,156.39,156.32,11.0]
[1723369534952,11.0,156.39,156.25,9.71212943]
[1723369534953,27.1383,156.4,156.25,9.71212943]
[1723369535156,27.1383,156.4,156.33,11.0]
[1723369535537,11.0,156.39,156.32,11.0]
[1723369535742,11.0,156.39,156.26,20.0]
[1723369535938,16.1383,156.36,156.27,7.68423076]
[1723369536141,16.1383,156.34,156.23,1.11143736]
[1723369536346,11.0,156.33,156.22,0.843774]
[1723369536529,6.4408,156.32,156.26,11.0]
[1723369537047,27.1383,156.31,156.23,11.0]
[1723369537247,11.0,156.3,156.22,0.843774]
[1723369537450,11.0,156.3,156.22,11.843774]
[1723369537625,1.60017983,156.3,156.22,11.843774]
[1723369537822,1.59997682,156.29,156.22,11.843774]
[1723369538034,1.60012048,156.29,156.22,11.843774]
[1723369538437,11.0,156.3,156.22,11.843774]
[1723369538937,16.1383,156.31,156.23,11.0]
[1723369539137,16.1383,156.31,156.28,11.0]
[1723369539442,16.1383,156.31,156.27,11.0]
[1723369539651,16.1383,156.31,156.22,0.843774]
[1723369539836,1.59979536,156.3,156.22,0.843774]
[1723369540038,16.1383,156.31,156.22,0.843774]
[1723369540230,16.1383,156.31,156.22,20.843774]
[1723369540438,16.1383,156.31,156.23,22.04]
[1723369542660,16.1383,156.31,156.22,0.843774]
[1723369542661,6.1305,156.29,156.22,0.843774]
[1723369542855,15.8041,156.28,156.22,0.843774]
[1723369544355,15.8041,156.28,156.22,22.883774]
[1723369545032,15.8041,156.28,156.24,22.04]
[1723369545237,15.8041,156.28,156.26,22.04]
[1723369545947,6.1305,156.29,156.26,22.04]
[1723369546135,15.8041,156.32,156.28,22.04]
[1723369546458,15.8041,156.32,156.27,20.0]
[1723369546459,15.8041,156.32,156.3,22.04]
[1723369546632,6.1305,156.33,156.3,22.04]
[1723369546830,15.8041,156.36,156.32,22.04]
[1723369547062,15.8041,156.36,156.35,22.04]
[1723369547243,6.1305,156.37,156.35,22.04]
[1723369547558,15.8041,156.4,156.32,0.12549]
[1723369547854,15.8041,156.4,156.36,22.04]
[1723369549972,15.8041,156.4,156.38,22.04]
[1723369551379,15.8041,156.4,156.31,65.12549]
[1723369551584,15.8041,156.4,156.33,22.04]
[1723369552357,6.20068628,156.39,156.31,22.04]
[1723369552696,4.60179,156.38,156.29,22.04]
[1723369552982,4.60179,156.38,156.22,0.843774]
[1723369552983,6.1305,156.36,156.22,0.843774]
[1723369553183,6.1305,156.36,156.27,22.04]
[1723369553668,15.8041,156.34,156.27,22.04]
[1723369555061,1.59966789,156.33,156.25,22.04]
[1723369555672,6.1305,156.32,156.25,22.04]
[1723369555886,1.59990277,156.31,156.25,22.04]
[1723369556373,1.59990277,156.31,156.22,0.843774]
[1723369556374,1.59990277,156.31,156.23,22.04]
[1723369556677,6.1305,156.32,156.25,22.04]
[1723369556885,6.1305,156.32,156.27,22.04]
[1723369557260,6.1305,156.32,156.25,22.04]
[1723369557961,6.1305,156.32,156.27,22.04]
[1723369559780,6.1305,156.32,156.28,27.53]
[1723369559967,6.1305,156.32,156.3,27.53]
[1723369560163,15.8041,156.34,156.3,27.53]
[1723369560363,15.8041,156.34,156.33,27.53]
[1723369560560,15.8041,156.34,156.31,27.53]
[1723369560961,15.8041,156.34,156.29,27.53]
[1723369561884,6.1305,156.36,156.33,27.53]
[1723369562185,15.0543,156.38,156.35,27.53]
[1723369562386,6.0869,156.4,156.37,27.53]
[1723369563473,6.0869,156.4,156.35,27.53]
[1723369563664,6.0869,156.4,156.34,27.53]
[1723369563859,6.0869,156.4,156.25,0.12549]
[1723369563860,1.59899346,156.39,156.32,27.53]
[1723369564060,1.59899346,156.39,156.3,27.53]
[1723369564291,6.07499346,156.39,156.3,27.53]
[1723369564598,15.0543,156.38,156.3,27.53]
[1723369564884,15.0543,156.38,156.32,27.53]
[1723369565562,6.0869,156.36,156.22,0.843774]
[1723369565764,4.4778,156.33,156.25,27.53]
[1723369566188,1.5998744,156.32,156.25,27.53]
[1723369566791,1.5998744,156.32,156.23,27.53]
[1723369566965,4.4777,156.33,156.23,27.53]
[1723369567163,1.5999434,156.32,156.23,27.53]
[1723369567392,6.0869,156.3,156.23,27.53]
[1723369567865,6.0869,156.3,156.22,0.843774]
[1723369569391,6.0869,156.3,156.23,27.53]
[1723369569691,6.0869,156.3,156.25,27.53]
[1723369570675,6.0869,156.3,156.27,27.53]
[1723369571590,6.0869,156.3,156.25,27.53]
[1723369576697,1.59984577,156.29,156.25,27.53]
[1723369576895,6.0869,156.3,156.25,27.53]
[1723369577193,6.0869,156.3,156.22,0.843774]
[1723369577194,15.17979,156.29,156.22,0.843774]
[1723369577504,0.12549,156.28,156.22,0.843774]
[1723369577795,60.43077,156.29,156.22,0.843774]
[1723369577991,1.60042506,156.28,156.22,0.843774]
[1723369578386,60.43077,156.29,156.22,0.843774]
[1723369578697,1.60033557,156.28,156.22,0.843774]
[1723369579085,6.0869,156.26,156.22,0.843774]
[1723369581287,6.0869,156.26,156.09,6.67363077]
[1723369581288,27.65549,156.24,156.09,6.67363077]
[1723369581489,15.30528,156.25,156.14,27.53]
[1723369581800,15.0543,156.25,156.16,27.53]
[1723369582091,0.12549,156.24,156.14,27.53]
[1723369582407,6.2811,156.2,156.12,27.53]
[1723369583277,1.60095113,156.19,156.1,27.53]
[1723369583708,16.5152,156.18,156.1,27.53]
[1723369584592,0.12549,156.17,156.08,27.53]
[1723369584796,47.10359119,156.17,156.11,4.484]
[1723369585103,50.3263,156.16,156.07,0.843774]
[1723369585417,22.7963,156.16,156.07,0.843774]
[1723369585714,22.7963,156.16,156.08,27.53]
[1723369586407,22.7963,156.16,156.07,0.843774]
[1723369586408,4.60849,156.15,156.07,0.843774]
[1723369586618,6.20978452,156.15,156.07,0.843774]
[1723369586817,4.60889,156.14,156.07,0.843774]
[1723369586996,0.12549,156.15,156.07,0.843774]
[1723369587496,1.60170929,156.15,156.07,0.843774]
[1723369587693,1.60163983,156.14,156.07,0.843774]
[1723369588319,1.60163847,156.15,156.07,0.843774]
[1723369588620,6.2811,156.13,156.07,0.843774]
[1723369588999,4.4838,156.12,156.07,0.843774]
[1723369589205,6.2811,156.13,156.07,0.843774]
[1723369589723,29.38292193,156.12,156.07,0.843774]
[1723369589906,4.4843,156.1,156.07,0.843774]
[1723369590108,4.4843,156.1,156.0,32.53]
[1723369590109,22.7963,156.08,156.0,5.0]
[1723369590308,1.60267001,156.07,156.0,5.0]
[1723369590620,50.3263,156.08,156.0,5.0]
[1723369590621,1.60247261,156.06,156.0,5.0]
[1723369590818,1.60246318,156.07,156.0,5.0]
[1723369591226,1.60229135,156.07,156.0,5.0]
[1723369591600,29.25783804,156.07,156.0,5.0]
[1723369591930,0.12549,156.06,156.0,5.0]
[1723369592130,1.60261966,156.06,156.0,5.0]
[1723369592316,22.7963,156.08,156.0,5.0]
[1723369592800,1.60245701,156.07,156.0,5.0]
[1723369593005,22.7963,156.08,156.0,5.0]
[1723369593406,6.2811,156.08,156.04,27.53]
[1723369593607,22.7963,156.12,156.04,27.53]
[1723369594427,22.7963,156.12,156.06,27.53]
[1723369595111,1.60141328,156.11,156.04,27.53]
[1723369595310,1.60180235,156.1,156.04,27.53]
[1723369595827,22.7963,156.12,156.06,27.53]
[1723369596006,6.2811,156.12,156.06,27.53]
[1723369596212,6.2811,156.12,156.05,45.0]
[1723369596414,6.2811,156.12,156.06,47.53]
[1723369596819,6.2811,156.12,156.06,27.53]
[1723369597021,6.2811,156.12,156.04,27.53]
[1723369599434,1.60150984,156.11,156.02,27.53]
[1723369599735,16.5152,156.09,156.0,5.0]
[1723369600314,1.6022108,156.08,156.0,5.0]
[1723369600521,16.5152,156.09,156.01,27.53]
[1723369600743,1.60206272,156.08,156.0,5.0]
[1723369601117,16.5152,156.09,156.0,5.0]
[1723369601447,1.60208967,156.08,156.0,5.0]
[1723369601611,16.5152,156.09,156.0,5.0]
[1723369603034,16.5152,156.09,156.05,27.53]
[1723369603238,6.2811,156.12,156.07,27.53]
[1723369605415,6.2811,156.12,156.03,27.53]
[1723369605837,1.60176283,156.11,156.03,27.53]
[1723369606144,6.2811,156.12,156.03,27.53]
[1723369606445,1.60184051,156.11,156.03,27.53]
[1723369606832,6.2811,156.12,156.03,27.53]
[1723369607530,1.60177832,156.11,156.03,27.53]
[1723369607738,1.60177832,156.11,156.05,27.53]
[1723369608313,6.2811,156.12,156.05,27.53]
[1723369608517,6.2811,156.12,156.07,27.53]
[1723369611329,6.2811,156.12,156.05,27.53]
[1723369611550,7.88270734,156.12,156.05,27.53]
[1723369612645,6.2811,156.12,156.05,27.53]
[1723369613153,6.2811,156.12,156.0,32.53]
[1723369613154,6.2811,156.12,156.07,27.53]
[1723369613956,22.1589,156.2,156.11,27.53]
[1723369614254,22.1589,156.2,156.09,27.53]
[1723369614255,22.1589,156.2,156.13,27.53]
[1723369614646,1.60085402,156.19,156.11,27.53]
[1723369615126,1.60085402,156.19,156.04,15.4499]
[1723369615127,1.60085402,156.19,156.09,27.53]
[1723369615331,22.1589,156.16,156.07,27.53]
[1723369615540,1.60159914,156.15,156.05,27.53]
[1723369616145,6.08439914,156.15,156.05,27.53]
[1723369616452,6.0508,156.14,156.03,27.53]
[1723369616659,1.60178365,156.13,156.03,27.53]
[1723369617030,6.0508,156.14,156.05,27.53]
[1723369617433,7.65240567,156.14,156.05,27.53]
[1723369617638,1.60147182,156.13,156.04,27.53]
[1723369617842,6.0508,156.14,156.04,27.53]
[1723369618041,7.65253469,156.14,156.04,27.53]
[1723369618250,6.0508,156.14,156.06,27.53]
[1723369618642,7.65230756,156.14,156.06,27.53]
[1723369620437,6.0508,156.14,156.06,27.53]
[1723369622243,6.0508,156.14,156.08,27.53]
[1723369622448,6.0508,156.14,156.1,27.53]
[1723369623360,6.0508,156.14,156.12,27.53]
[1723369624380,16.1081,156.16,156.12,27.53]
[1723369624673,6.0661,156.18,156.14,27.53]
[1723369624852,6.0661,156.18,156.16,27.53]
[1723369625059,16.5875,156.2,156.16,27.53]
[1723369625361,6.08250494,156.19,156.1,27.53]
[1723369625760,6.0661,156.18,156.1,27.53]
[1723369626072,1.60125262,156.17,156.1,27.53]
[1723369627154,6.0661,156.18,156.1,27.53]
[1723369628953,6.0661,156.18,156.12,27.53]
[1723369629160,6.0661,156.18,156.14,27.53]
[1723369629356,16.5875,156.2,156.16,27.53]
[1723369629766,6.0661,156.22,156.16,27.53]
[1723369630082,6.0661,156.22,156.18,27.53]
[1723369630296,6.0661,156.22,156.2,27.53]